[Event "Late-Titled-Tuesday-Blitz-February-06-2024"]
[Site "Chess.com"]
[Date "2024.02.06"]
[Round "6"]
[White "aghasiyevkamal"]
[Black "ferdipy"]
[Result "1-0"]
[WhiteElo "2614"]
[BlackElo "2403"]
[TimeControl "180+1"]
[EndTime "15:07:32 PST"]
[Termination "aghasiyevkamal won by checkmate"]

1. d4 {[%clk 0:02:59.7]} 1... e5 {[%clk 0:01:54.4]} 2. dxe5 {[%clk 0:02:57.4]}
2... d6 {[%clk 0:01:55.3]} 3. Nf3 {[%clk 0:02:55]} 3... Nc6 {[%clk 0:01:55.2]}
4. e4 {[%clk 0:02:50.7]} 4... Bg4 {[%clk 0:01:54.6]} 5. Bb5 {[%clk 0:02:50.6]}
5... dxe5 {[%clk 0:01:54.1]} 6. Bxc6+ {[%clk 0:02:49.5]} 6... bxc6 {[%clk
0:01:54.2]} 7. Nbd2 {[%clk 0:02:49]} 7... Bd6 {[%clk 0:01:52.9]} 8. O-O {[%clk
0:02:48.3]} 8... Nf6 {[%clk 0:01:51.8]} 9. c3 {[%clk 0:02:47.7]} 9... O-O {[%clk
0:01:51.6]} 10. Qc2 {[%clk 0:02:47.7]} 10... Qd7 {[%clk 0:01:50.4]} 11. h3
{[%clk 0:02:36.3]} 11... Bh5 {[%clk 0:01:50.3]} 12. Nh4 {[%clk 0:02:34]} 12...
Bc5 {[%clk 0:01:44.5]} 13. Nc4 {[%clk 0:02:32.3]} 13... Qe6 {[%clk 0:01:43.4]}
14. b3 {[%clk 0:02:30.4]} 14... a5 {[%clk 0:01:42.9]} 15. Be3 {[%clk 0:02:24.6]}
15... Bd6 {[%clk 0:01:33.1]} 16. a4 {[%clk 0:02:18.6]} 16... Rfd8 {[%clk
0:01:27.8]} 17. f3 {[%clk 0:02:12.8]} 17... Bf8 {[%clk 0:01:24.9]} 18. Rad1
{[%clk 0:02:09.7]} 18... Rdb8 {[%clk 0:01:21.8]} 19. Nf5 {[%clk 0:01:45.6]}
19... Bg6 {[%clk 0:01:16]} 20. Ng3 {[%clk 0:01:36.3]} 20... h5 {[%clk
0:01:13.7]} 21. Nf5 {[%clk 0:01:21.4]} 21... Ne8 {[%clk 0:01:07.9]} 22. g4
{[%clk 0:01:15.9]} 22... hxg4 {[%clk 0:01:03.7]} 23. hxg4 {[%clk 0:01:15.7]}
23... Nd6 {[%clk 0:01:00.4]} 24. Ncxd6 {[%clk 0:01:15.7]} 24... cxd6 {[%clk
0:01:00.1]} 25. c4 {[%clk 0:01:16.2]} 25... Rb4 {[%clk 0:00:55]} 26. Rd3 {[%clk
0:01:13.7]} 26... Rab8 {[%clk 0:00:49.1]} 27. Rfd1 {[%clk 0:01:13.6]} 27... d5
{[%clk 0:00:45.5]} 28. cxd5 {[%clk 0:01:02.9]} 28... cxd5 {[%clk 0:00:46.4]} 29.
Rxd5 {[%clk 0:01:03]} 29... Rc8 {[%clk 0:00:37.3]} 30. Qd3 {[%clk 0:00:57.9]}
30... Rcb8 {[%clk 0:00:30.1]} 31. Qc3 {[%clk 0:00:35.1]} 31... Rxb3 {[%clk
0:00:27.6]} 32. Qxe5 {[%clk 0:00:35]} 32... Qxe5 {[%clk 0:00:24.9]} 33. Rxe5
{[%clk 0:00:35.3]} 33... f6 {[%clk 0:00:21.2]} 34. Re6 {[%clk 0:00:27.1]} 34...
Bxf5 {[%clk 0:00:20.9]} 35. exf5 {[%clk 0:00:26.9]} 35... Rxe3 {[%clk
0:00:18.3]} 36. Rxe3 {[%clk 0:00:26.9]} 36... Bc5 {[%clk 0:00:19.2]} 37. Rd3
{[%clk 0:00:26.6]} 37... Re8 {[%clk 0:00:17]} 38. Kf2 {[%clk 0:00:26.7]} 38...
Bxe3+ {[%clk 0:00:16.9]} 39. Rxe3 {[%clk 0:00:26.7]} 39... Rb8 {[%clk
0:00:14.4]} 40. Re4 {[%clk 0:00:21.5]} 40... Kf7 {[%clk 0:00:12.6]} 41. Ke3
{[%clk 0:00:20.1]} 41... Rb3+ {[%clk 0:00:12.7]} 42. Kf4 {[%clk 0:00:19]} 42...
Ra3 {[%clk 0:00:12.7]} 43. Rd4 {[%clk 0:00:18.7]} 43... Ra1 {[%clk 0:00:12]} 44.
Ke4 {[%clk 0:00:18.8]} 44... Ra3 {[%clk 0:00:11.8]} 45. f4 {[%clk 0:00:18.5]}
45... Ra1 {[%clk 0:00:12.2]} 46. g5 {[%clk 0:00:18.9]} 46... fxg5 {[%clk
0:00:12.2]} 47. fxg5 {[%clk 0:00:19.3]} 47... Re1+ {[%clk 0:00:12.6]} 48. Kd5
{[%clk 0:00:17.1]} 48... Rf1 {[%clk 0:00:13]} 49. Ke5 {[%clk 0:00:15.4]} 49...
Re1+ {[%clk 0:00:13.2]} 50. Re4 {[%clk 0:00:15.5]} 50... Ra1 {[%clk 0:00:13.4]}
51. g6+ {[%clk 0:00:14.5]} 51... Ke7 {[%clk 0:00:13.8]} 52. Kf4+ {[%clk
0:00:14.1]} 52... Kd7 {[%clk 0:00:14.3]} 53. Rd4+ {[%clk 0:00:08.8]} 53... Ke7
{[%clk 0:00:14.3]} 54. Ke5 {[%clk 0:00:08.9]} 54... Re1+ {[%clk 0:00:12.6]} 55.
Re4 {[%clk 0:00:09.1]} 55... Rd1 {[%clk 0:00:11.8]} 56. f6+ {[%clk 0:00:08.7]}
56... gxf6+ {[%clk 0:00:11.7]} 57. Kf5+ {[%clk 0:00:09.1]} 57... Kf8 {[%clk
0:00:12.1]} 58. Kxf6 {[%clk 0:00:09.6]} 58... Rd6+ {[%clk 0:00:12.1]} 59. Kg5
{[%clk 0:00:09.4]} 59... Rd7 {[%clk 0:00:11.3]} 60. Kh6 {[%clk 0:00:09.6]} 60...
Kg8 {[%clk 0:00:08.1]} 61. Re8# {[%clk 0:00:09.1]} 1-0

[Event "Late-Titled-Tuesday-Blitz-February-06-2024"]
[Site "Chess.com"]
[Date "2024.02.06"]
[Round "6"]
[White "kekic76"]
[Black "mightysmasher"]
[Result "0-1"]
[WhiteElo "2376"]
[BlackElo "2555"]
[TimeControl "180+1"]
[EndTime "15:07:36 PST"]
[Termination "mightysmasher won by checkmate"]

1. e4 {[%clk 0:03:00.9]} 1... e6 {[%clk 0:02:50.6]} 2. d4 {[%clk 0:03:00.3]}
2... d5 {[%clk 0:02:50.8]} 3. exd5 {[%clk 0:03:01.2]} 3... exd5 {[%clk
0:02:51.7]} 4. Bd3 {[%clk 0:03:01.7]} 4... Nf6 {[%clk 0:02:52]} 5. Ne2 {[%clk
0:03:00.9]} 5... Bd6 {[%clk 0:02:52.5]} 6. Bf4 {[%clk 0:03:00.6]} 6... O-O
{[%clk 0:02:52]} 7. O-O {[%clk 0:02:59.9]} 7... c6 {[%clk 0:02:51.7]} 8. c3
{[%clk 0:03:00]} 8... Re8 {[%clk 0:02:50.9]} 9. Bxd6 {[%clk 0:02:57.3]} 9...
Qxd6 {[%clk 0:02:50.6]} 10. Nd2 {[%clk 0:02:55.7]} 10... Bg4 {[%clk 0:02:49.8]}
11. f3 {[%clk 0:02:54.5]} 11... Bh5 {[%clk 0:02:49.2]} 12. Ng3 {[%clk
0:02:54.1]} 12... Bg6 {[%clk 0:02:48.4]} 13. Qc2 {[%clk 0:02:54.3]} 13... Nbd7
{[%clk 0:02:46.6]} 14. Rae1 {[%clk 0:02:54.3]} 14... a5 {[%clk 0:02:39.3]} 15.
Nf5 {[%clk 0:02:54.1]} 15... Qf8 {[%clk 0:02:30.1]} 16. g4 {[%clk 0:02:50.2]}
16... a4 {[%clk 0:02:23.4]} 17. h4 {[%clk 0:02:49.9]} 17... h5 {[%clk
0:02:21.4]} 18. g5 {[%clk 0:02:49.1]} 18... Nh7 {[%clk 0:02:20.1]} 19. Ng3
{[%clk 0:02:43.8]} 19... Qd6 {[%clk 0:02:13.7]} 20. Kg2 {[%clk 0:02:36.4]} 20...
Nhf8 {[%clk 0:02:08.4]} 21. Rxe8 {[%clk 0:02:21.9]} 21... Rxe8 {[%clk 0:02:06]}
22. f4 {[%clk 0:02:22.3]} 22... Bxd3 {[%clk 0:02:03.1]} 23. Qxd3 {[%clk
0:02:22]} 23... Ng6 {[%clk 0:01:52.8]} 24. Nxh5 {[%clk 0:02:16.6]} 24... Nxh4+
{[%clk 0:01:46.4]} 25. Kg3 {[%clk 0:02:13]} 25... Ng6 {[%clk 0:01:41]} 26. Nf3
{[%clk 0:02:03.6]} 26... Re4 {[%clk 0:01:28.1]} 27. Ne5 {[%clk 0:01:57.1]} 27...
Ngxe5 {[%clk 0:01:26.6]} 28. dxe5 {[%clk 0:01:55.3]} 28... Qg6 {[%clk
0:01:21.2]} 29. Rh1 {[%clk 0:01:40.3]} 29... Nxe5 {[%clk 0:00:59]} 30. Qd1
{[%clk 0:01:28.4]} 30... Nd7 {[%clk 0:00:38]} 31. Qg4 {[%clk 0:01:28.2]} 31...
Re3+ {[%clk 0:00:30.8]} 32. Kh4 {[%clk 0:01:25.9]} 32... Qe6 {[%clk 0:00:23.4]}
33. Qxe6 {[%clk 0:01:17.4]} 33... fxe6 {[%clk 0:00:23.8]} 34. Rh2 {[%clk
0:01:15.4]} 34... Re4 {[%clk 0:00:23.7]} 35. Kg3 {[%clk 0:01:14.1]} 35... Nc5
{[%clk 0:00:21.8]} 36. Kf3 {[%clk 0:01:09.7]} 36... Nd3 {[%clk 0:00:19.1]} 37.
Rd2 {[%clk 0:01:02.2]} 37... Nc5 {[%clk 0:00:17.3]} 38. Ng3 {[%clk 0:00:59.7]}
38... Rc4 {[%clk 0:00:16.5]} 39. a3 {[%clk 0:00:58.9]} 39... Ne4 {[%clk
0:00:16.2]} 40. Re2 {[%clk 0:00:55.8]} 40... Nxg3 {[%clk 0:00:15.8]} 41. Kxg3
{[%clk 0:00:56.4]} 41... Kf7 {[%clk 0:00:16.3]} 42. Rh2 {[%clk 0:00:56.3]} 42...
Kg6 {[%clk 0:00:16.1]} 43. Rh8 {[%clk 0:00:55.5]} 43... Re4 {[%clk 0:00:16]} 44.
Rb8 {[%clk 0:00:42.8]} 44... b5 {[%clk 0:00:15.8]} 45. Rc8 {[%clk 0:00:39.2]}
45... Rc4 {[%clk 0:00:15.6]} 46. Rb8 {[%clk 0:00:24.8]} 46... e5 {[%clk
0:00:13.6]} 47. fxe5 {[%clk 0:00:24.4]} 47... Kxg5 {[%clk 0:00:13.7]} 48. Rb7
{[%clk 0:00:20.8]} 48... Kf5 {[%clk 0:00:13.2]} 49. Rxg7 {[%clk 0:00:20.1]}
49... Kxe5 {[%clk 0:00:13.4]} 50. Kf3 {[%clk 0:00:20.4]} 50... Rh4 {[%clk
0:00:13.4]} 51. Rg5+ {[%clk 0:00:17.6]} 51... Kd6 {[%clk 0:00:13.2]} 52. Rg2
{[%clk 0:00:17.7]} 52... Kc5 {[%clk 0:00:13.1]} 53. Ke3 {[%clk 0:00:17.6]} 53...
Kc4 {[%clk 0:00:12.2]} 54. Kd2 {[%clk 0:00:13.9]} 54... d4 {[%clk 0:00:11]} 55.
cxd4 {[%clk 0:00:13.7]} 55... Rxd4+ {[%clk 0:00:09.6]} 56. Kc2 {[%clk 0:00:14]}
56... c5 {[%clk 0:00:09.9]} 57. Rf2 {[%clk 0:00:13.7]} 57... b4 {[%clk
0:00:09.4]} 58. axb4 {[%clk 0:00:14.1]} 58... cxb4 {[%clk 0:00:09.6]} 59. Rf8
{[%clk 0:00:13.8]} 59... b3+ {[%clk 0:00:06.4]} 60. Kc1 {[%clk 0:00:14.1]} 60...
Kd3 {[%clk 0:00:04.3]} 61. Rf3+ {[%clk 0:00:13.7]} 61... Ke2 {[%clk 0:00:04.4]}
62. Rf8 {[%clk 0:00:12]} 62... Rd1# {[%clk 0:00:04.3]} 0-1

[Event "Late-Titled-Tuesday-Blitz-February-06-2024"]
[Site "Chess.com"]
[Date "2024.02.06"]
[Round "6"]
[White "Witik"]
[Black "Petukhov_Dmitry"]
[Result "1-0"]
[WhiteElo "2754"]
[BlackElo "2547"]
[TimeControl "180+1"]
[EndTime "15:07:37 PST"]
[Termination "Witik won on time"]

1. d4 {[%clk 0:02:59.8]} 1... Nf6 {[%clk 0:02:57.9]} 2. c4 {[%clk 0:02:59.9]}
2... g6 {[%clk 0:02:57.7]} 3. g3 {[%clk 0:02:59]} 3... Bg7 {[%clk 0:02:57.4]} 4.
Bg2 {[%clk 0:02:59.3]} 4... O-O {[%clk 0:02:58.3]} 5. Nc3 {[%clk 0:02:59.9]}
5... c6 {[%clk 0:02:58.8]} 6. e4 {[%clk 0:02:59.4]} 6... d5 {[%clk 0:02:59.7]}
7. cxd5 {[%clk 0:02:58.1]} 7... cxd5 {[%clk 0:03:00.6]} 8. e5 {[%clk 0:02:58.8]}
8... Ne4 {[%clk 0:03:01]} 9. Nge2 {[%clk 0:02:47.4]} 9... Nc6 {[%clk 0:02:55]}
10. O-O {[%clk 0:02:46.3]} 10... Nxc3 {[%clk 0:02:45.9]} 11. Nxc3 {[%clk
0:02:45.5]} 11... e6 {[%clk 0:02:40.3]} 12. Be3 {[%clk 0:02:31.1]} 12... b6
{[%clk 0:02:33.4]} 13. Qd2 {[%clk 0:02:17.9]} 13... Ba6 {[%clk 0:02:16.8]} 14.
Rfd1 {[%clk 0:02:17.5]} 14... Na5 {[%clk 0:02:14.5]} 15. b3 {[%clk 0:02:17.3]}
15... Rc8 {[%clk 0:02:13.7]} 16. Ne2 {[%clk 0:02:11.7]} 16... Qe7 {[%clk
0:01:57.3]} 17. h4 {[%clk 0:01:58.7]} 17... Qa3 {[%clk 0:01:47.4]} 18. h5 {[%clk
0:01:49.7]} 18... Rc7 {[%clk 0:01:39.9]} 19. h6 {[%clk 0:01:49.1]} 19... Bh8
{[%clk 0:01:39.9]} 20. Bg5 {[%clk 0:01:29.3]} 20... Rfc8 {[%clk 0:01:38.3]} 21.
Bf1 {[%clk 0:00:56.9]} 21... Rc2 {[%clk 0:01:26]} 22. Qe3 {[%clk 0:00:57]} 22...
Rxa2 {[%clk 0:01:23.2]} 23. Rxa2 {[%clk 0:00:51.9]} 23... Qxa2 {[%clk
0:01:24.1]} 24. Nc3 {[%clk 0:00:24]} 24... Qxb3 {[%clk 0:01:15.3]} 25. Bxa6
{[%clk 0:00:17.6]} 25... Rxc3 {[%clk 0:01:15.3]} 26. Qe1 {[%clk 0:00:15.3]}
26... Nc4 {[%clk 0:00:58.5]} 27. Rb1 {[%clk 0:00:12]} 27... Qc2 {[%clk
0:00:48.3]} 28. Rc1 {[%clk 0:00:10.8]} 28... Qa4 {[%clk 0:00:41.8]} 29. Qxc3
{[%clk 0:00:09.6]} 29... Qxa6 {[%clk 0:00:41.8]} 30. Qb4 {[%clk 0:00:10.3]}
30... Qb7 {[%clk 0:00:33.8]} 31. Qb5 {[%clk 0:00:10.6]} 31... Qc8 {[%clk
0:00:29.1]} 32. Ra1 {[%clk 0:00:09.1]} 32... a5 {[%clk 0:00:26.2]} 33. Be7
{[%clk 0:00:09.4]} 33... f6 {[%clk 0:00:21.2]} 34. exf6 {[%clk 0:00:09.4]} 34...
Kf7 {[%clk 0:00:21.1]} 35. Rc1 {[%clk 0:00:04.7]} 35... Bxf6 {[%clk 0:00:21]}
36. Bxf6 {[%clk 0:00:05.2]} 36... Kxf6 {[%clk 0:00:21.9]} 37. Qb3 {[%clk
0:00:03.7]} 37... Kg5 {[%clk 0:00:18.6]} 38. Kg2 {[%clk 0:00:02.1]} 38... Kxh6
{[%clk 0:00:18.2]} 39. Rh1+ {[%clk 0:00:01.9]} 39... Kg7 {[%clk 0:00:18.6]} 40.
Qf3 {[%clk 0:00:02.6]} 40... Qd7 {[%clk 0:00:10.4]} 41. Qf4 {[%clk 0:00:02.9]}
41... h5 {[%clk 0:00:10.5]} 42. Qg5 {[%clk 0:00:03.3]} 42... Qf7 {[%clk
0:00:10.6]} 43. Rxh5 {[%clk 0:00:03.2]} 43... Qf6 {[%clk 0:00:09.4]} 44. Qh6+
{[%clk 0:00:03.6]} 44... Kf7 {[%clk 0:00:09.2]} 45. Qh7+ {[%clk 0:00:04]} 45...
Qg7 {[%clk 0:00:09.6]} 46. Rh1 {[%clk 0:00:03.7]} 46... a4 {[%clk 0:00:07]} 47.
Qh4 {[%clk 0:00:03.8]} 47... Qf6 {[%clk 0:00:06.2]} 48. Qh7+ {[%clk 0:00:03.8]}
48... Qg7 {[%clk 0:00:06.5]} 49. Qh4 {[%clk 0:00:04.1]} 49... Qf6 {[%clk
0:00:05.9]} 50. Qg4 {[%clk 0:00:04.8]} 50... Kg7 {[%clk 0:00:04.2]} 51. Rh4
{[%clk 0:00:03.8]} 51... Qf5 {[%clk 0:00:03.9]} 52. Qd1 {[%clk 0:00:03.5]} 52...
a3 {[%clk 0:00:03.6]} 53. Rf4 {[%clk 0:00:04]} 53... Qh5 {[%clk 0:00:02.2]} 54.
Qb3 {[%clk 0:00:04]} 54... Qe2 {[%clk 0:00:02.2]} 55. Qb4 {[%clk 0:00:04.2]}
55... Ne3+ {[%clk 0:00:02.2]} 56. Kg1 {[%clk 0:00:03.4]} 1-0

[Event "Late-Titled-Tuesday-Blitz-February-06-2024"]
[Site "Chess.com"]
[Date "2024.02.06"]
[Round "6"]
[White "Quattroporte300"]
[Black "AmanteDeMoi"]
[Result "0-1"]
[WhiteElo "2388"]
[BlackElo "2594"]
[TimeControl "180+1"]
[EndTime "15:07:38 PST"]
[Termination "AmanteDeMoi won by checkmate"]

1. e4 {[%clk 0:03:00.9]} 1... g6 {[%clk 0:03:00.9]} 2. d4 {[%clk 0:02:59.8]}
2... Bg7 {[%clk 0:03:01.8]} 3. Nf3 {[%clk 0:02:57.6]} 3... c6 {[%clk 0:03:01.4]}
4. Nc3 {[%clk 0:02:51.4]} 4... d5 {[%clk 0:03:02.3]} 5. h3 {[%clk 0:02:50.4]}
5... dxe4 {[%clk 0:02:58.1]} 6. Nxe4 {[%clk 0:02:51.3]} 6... Nd7 {[%clk
0:02:58.5]} 7. Bc4 {[%clk 0:02:50.3]} 7... Ngf6 {[%clk 0:02:59]} 8. Nxf6+ {[%clk
0:02:48.6]} 8... Nxf6 {[%clk 0:02:58.8]} 9. O-O {[%clk 0:02:48.7]} 9... O-O
{[%clk 0:02:59.5]} 10. c3 {[%clk 0:02:48.9]} 10... Qc7 {[%clk 0:03:00.1]} 11.
Re1 {[%clk 0:02:47.7]} 11... c5 {[%clk 0:03:00.7]} 12. d5 {[%clk 0:02:43.8]}
12... Rd8 {[%clk 0:01:47.2]} 13. a4 {[%clk 0:02:37.5]} 13... Nxd5 {[%clk
0:01:39.5]} 14. Bxd5 {[%clk 0:02:28.9]} 14... e6 {[%clk 0:01:40.1]} 15. c4
{[%clk 0:02:22.6]} 15... exd5 {[%clk 0:01:31]} 16. cxd5 {[%clk 0:02:22.4]} 16...
Be6 {[%clk 0:01:31.6]} 17. Be3 {[%clk 0:02:00.8]} 17... Bxb2 {[%clk 0:01:24.6]}
18. Rb1 {[%clk 0:01:59.7]} 18... Rxd5 {[%clk 0:01:24.3]} 19. Qc2 {[%clk
0:01:55.1]} 19... Bf6 {[%clk 0:01:17.9]} 20. Rec1 {[%clk 0:01:36.5]} 20... b6
{[%clk 0:01:15.6]} 21. Qe2 {[%clk 0:01:21.6]} 21... Re8 {[%clk 0:01:13.4]} 22.
Qb5 {[%clk 0:01:17.2]} 22... Bd7 {[%clk 0:01:13.7]} 23. Qb3 {[%clk 0:01:17.1]}
23... Bc6 {[%clk 0:01:12.1]} 24. a5 {[%clk 0:01:07]} 24... Rf5 {[%clk
0:00:49.6]} 25. axb6 {[%clk 0:00:56.1]} 25... axb6 {[%clk 0:00:50.5]} 26. Qxb6
{[%clk 0:00:52.5]} 26... Qxb6 {[%clk 0:00:43.5]} 27. Rxb6 {[%clk 0:00:53.4]}
27... Bxf3 {[%clk 0:00:43.6]} 28. gxf3 {[%clk 0:00:53.4]} 28... Bd4 {[%clk
0:00:36.2]} 29. Bxd4 {[%clk 0:00:42.2]} 29... cxd4 {[%clk 0:00:37.1]} 30. Rd6
{[%clk 0:00:42.5]} 30... Rxf3 {[%clk 0:00:35.9]} 31. Kg2 {[%clk 0:00:39.8]}
31... Rd3 {[%clk 0:00:36.5]} 32. Rc4 {[%clk 0:00:38.4]} 32... Re4 {[%clk
0:00:36.1]} 33. Rd7 {[%clk 0:00:36.3]} 33... Rf4 {[%clk 0:00:35.5]} 34. Ra4
{[%clk 0:00:18.1]} 34... h5 {[%clk 0:00:35.9]} 35. Kf1 {[%clk 0:00:05.8]} 35...
h4 {[%clk 0:00:36.1]} 36. Ke2 {[%clk 0:00:05.7]} 36... Rdf3 {[%clk 0:00:28]} 37.
Raxd4 {[%clk 0:00:05.5]} 37... Rxf2+ {[%clk 0:00:28.5]} 38. Ke1 {[%clk
0:00:04.8]} 38... Rf1+ {[%clk 0:00:28]} 39. Ke2 {[%clk 0:00:05.4]} 39... R4f2+
{[%clk 0:00:28.2]} 40. Ke3 {[%clk 0:00:05.8]} 40... Rf3+ {[%clk 0:00:28.8]} 41.
Ke2 {[%clk 0:00:06.2]} 41... R1f2+ {[%clk 0:00:20.1]} 42. Ke1 {[%clk 0:00:06.4]}
42... Rh2 {[%clk 0:00:20.4]} 43. Rxh4 {[%clk 0:00:05.3]} 43... Rfxh3 {[%clk
0:00:18.4]} 44. Rxh3 {[%clk 0:00:05]} 44... Rxh3 {[%clk 0:00:18.7]} 45. Kf2
{[%clk 0:00:05.1]} 45... Kg7 {[%clk 0:00:18.8]} 46. Kg2 {[%clk 0:00:05.7]} 46...
Ra3 {[%clk 0:00:19]} 47. Rb7 {[%clk 0:00:05.3]} 47... g5 {[%clk 0:00:18.5]} 48.
Rb5 {[%clk 0:00:05.4]} 48... Kg6 {[%clk 0:00:18.5]} 49. Rb6+ {[%clk 0:00:05.8]}
49... f6 {[%clk 0:00:18.6]} 50. Rc6 {[%clk 0:00:06.6]} 50... g4 {[%clk
0:00:17.5]} 51. Rc4 {[%clk 0:00:07.3]} 51... Kg5 {[%clk 0:00:17]} 52. Rc5+
{[%clk 0:00:07.9]} 52... f5 {[%clk 0:00:17.2]} 53. Rb5 {[%clk 0:00:08.2]} 53...
Ra2+ {[%clk 0:00:15.8]} 54. Kg1 {[%clk 0:00:08.2]} 54... Kf4 {[%clk 0:00:15.2]}
55. Rb4+ {[%clk 0:00:08.5]} 55... Kg3 {[%clk 0:00:15.2]} 56. Rb3+ {[%clk
0:00:09.1]} 56... Kh4 {[%clk 0:00:15.7]} 57. Rb8 {[%clk 0:00:06.3]} 57... Kh3
{[%clk 0:00:15.2]} 58. Rb3+ {[%clk 0:00:06]} 58... g3 {[%clk 0:00:15.5]} 59. Rb1
{[%clk 0:00:05.5]} 59... f4 {[%clk 0:00:15.4]} 60. Kh1 {[%clk 0:00:05.3]} 60...
Rh2+ {[%clk 0:00:14.7]} 61. Kg1 {[%clk 0:00:05.4]} 61... f3 {[%clk 0:00:15.3]}
62. Rf1 {[%clk 0:00:01.9]} 62... f2+ {[%clk 0:00:04.2]} 63. Rxf2 {[%clk
0:00:02.3]} 63... Rxf2 {[%clk 0:00:04]} 64. Kh1 {[%clk 0:00:02.3]} 64... Rf1#
{[%clk 0:00:04.9]} 0-1

[Event "Late-Titled-Tuesday-Blitz-February-06-2024"]
[Site "Chess.com"]
[Date "2024.02.06"]
[Round "6"]
[White "Ze-Pequeno"]
[Black "Veleamater"]
[Result "0-1"]
[WhiteElo "2125"]
[BlackElo "2331"]
[TimeControl "180+1"]
[EndTime "15:07:38 PST"]
[Termination "Veleamater won on time"]

1. e4 {[%clk 0:02:56.8]} 1... d6 {[%clk 0:03:00.9]} 2. d4 {[%clk 0:02:56.1]}
2... g6 {[%clk 0:03:01.3]} 3. c4 {[%clk 0:02:55.6]} 3... Bg7 {[%clk 0:03:00.9]}
4. Nf3 {[%clk 0:02:55.7]} 4... Nf6 {[%clk 0:02:59.7]} 5. Nc3 {[%clk 0:02:55.6]}
5... O-O {[%clk 0:03:00.3]} 6. Be2 {[%clk 0:02:56.1]} 6... Nc6 {[%clk
0:03:00.7]} 7. d5 {[%clk 0:02:54.1]} 7... Ne5 {[%clk 0:02:59.8]} 8. Nxe5 {[%clk
0:02:54]} 8... dxe5 {[%clk 0:03:00.7]} 9. O-O {[%clk 0:02:54]} 9... Ne8 {[%clk
0:03:00.8]} 10. Be3 {[%clk 0:02:53]} 10... h6 {[%clk 0:03:00.6]} 11. Qd2 {[%clk
0:02:50]} 11... Kh7 {[%clk 0:03:00.3]} 12. c5 {[%clk 0:02:42.7]} 12... f5 {[%clk
0:02:59.6]} 13. f3 {[%clk 0:02:42.9]} 13... f4 {[%clk 0:03:00]} 14. Bf2 {[%clk
0:02:42.9]} 14... g5 {[%clk 0:03:00.9]} 15. h3 {[%clk 0:02:33.1]} 15... Rf6
{[%clk 0:03:01]} 16. Rfc1 {[%clk 0:02:10.2]} 16... Rg6 {[%clk 0:03:00.7]} 17.
Kf1 {[%clk 0:02:07.6]} 17... h5 {[%clk 0:03:00.6]} 18. Qd1 {[%clk 0:02:06.8]}
18... Nf6 {[%clk 0:02:58.3]} 19. Rc2 {[%clk 0:01:58.4]} 19... g4 {[%clk
0:02:32]} 20. hxg4 {[%clk 0:01:57.9]} 20... hxg4 {[%clk 0:02:32]} 21. Rd2 {[%clk
0:01:57.6]} 21... g3 {[%clk 0:02:31.5]} 22. Bg1 {[%clk 0:01:57]} 22... Nh5
{[%clk 0:02:31.5]} 23. Bc4 {[%clk 0:01:32.7]} 23... b6 {[%clk 0:02:21.9]} 24. b4
{[%clk 0:01:27.6]} 24... Bd7 {[%clk 0:02:21.9]} 25. a3 {[%clk 0:01:13.3]} 25...
Rh6 {[%clk 0:02:18.4]} 26. a4 {[%clk 0:01:10]} 26... Bf8 {[%clk 0:02:16.7]} 27.
a5 {[%clk 0:01:07.4]} 27... Rb8 {[%clk 0:02:14.8]} 28. axb6 {[%clk 0:01:05.8]}
28... axb6 {[%clk 0:02:14.5]} 29. c6 {[%clk 0:00:55.5]} 29... Bc8 {[%clk
0:02:13.2]} 30. Nb5 {[%clk 0:00:56]} 30... Nf6 {[%clk 0:02:11.8]} 31. Ra7 {[%clk
0:00:54.8]} 31... Ne8 {[%clk 0:02:09.9]} 32. Qa1 {[%clk 0:00:53.7]} 32... e6
{[%clk 0:02:03.8]} 33. Qxe5 {[%clk 0:00:51.4]} 33... Bg7 {[%clk 0:01:59.3]} 34.
Qxf4 {[%clk 0:00:50.8]} 34... exd5 {[%clk 0:01:56.7]} 35. Bxd5 {[%clk
0:00:42.5]} 35... Qe7 {[%clk 0:01:55.7]} 36. Qe3 {[%clk 0:00:22]} 36... Rh1
{[%clk 0:01:50]} 37. f4 {[%clk 0:00:20.7]} 37... Qxb4 {[%clk 0:01:43]} 38. Qd3
{[%clk 0:00:11.5]} 38... Qc5 {[%clk 0:01:30.5]} 39. Ke2 {[%clk 0:00:08.2]} 39...
Rxg1 {[%clk 0:01:26.8]} 40. Kf3 {[%clk 0:00:07.2]} 40... Qe7 {[%clk 0:01:15.9]}
41. Kxg3 {[%clk 0:00:05.5]} 41... Rh1 {[%clk 0:01:15.8]} 42. Kf2 {[%clk
0:00:05.6]} 42... Qh4+ {[%clk 0:01:15.2]} 43. Ke3 {[%clk 0:00:03.4]} 43... Re1+
{[%clk 0:01:12.1]} 44. Re2 {[%clk 0:00:03.9]} 44... Qg3+ {[%clk 0:01:11.4]} 45.
Kd2 {[%clk 0:00:04]} 45... Qxd3+ {[%clk 0:01:09]} 46. Kxd3 {[%clk 0:00:04.3]}
46... Rxe2 {[%clk 0:01:03.7]} 47. Kxe2 {[%clk 0:00:04.4]} 47... Bg4+ {[%clk
0:01:03.5]} 48. Ke3 {[%clk 0:00:04.3]} 48... Rc8 {[%clk 0:00:58.6]} 49. e5
{[%clk 0:00:04.7]} 49... Kg6 {[%clk 0:00:57.2]} 50. Be4+ {[%clk 0:00:04.1]}
50... Bf5 {[%clk 0:00:57]} 51. Bd5 {[%clk 0:00:03.8]} 51... Rd8 {[%clk 0:00:52]}
52. Bf3 {[%clk 0:00:03.2]} 52... Rd3+ {[%clk 0:00:50.5]} 53. Ke2 {[%clk
0:00:03.7]} 53... Rb3 {[%clk 0:00:48.1]} 54. Nxc7 {[%clk 0:00:03.8]} 54... Nxc7
{[%clk 0:00:47.2]} 55. Rxc7 {[%clk 0:00:04.7]} 55... Rb2+ {[%clk 0:00:47.2]} 56.
Ke3 {[%clk 0:00:04.3]} 56... b5 {[%clk 0:00:47]} 57. g4 {[%clk 0:00:04.4]} 57...
Bb1 {[%clk 0:00:46.2]} 58. f5+ {[%clk 0:00:04.1]} 58... Kh6 {[%clk 0:00:45.7]}
59. f6 {[%clk 0:00:04]} 59... Bf8 {[%clk 0:00:43.9]} 60. Rc8 {[%clk 0:00:04.3]}
60... Bc5+ {[%clk 0:00:42.2]} 61. Kf4 {[%clk 0:00:03.6]} 61... Rb4+ {[%clk
0:00:42]} 62. Kg3 {[%clk 0:00:04]} 62... Bd4 {[%clk 0:00:35.9]} 63. Re8 {[%clk
0:00:03.4]} 63... Rb3 {[%clk 0:00:32.6]} 64. f7 {[%clk 0:00:02.7]} 64... Bc5
{[%clk 0:00:27]} 65. c7 {[%clk 0:00:02.4]} 65... Be4 {[%clk 0:00:24.8]} 66.
f8=Q+ {[%clk 0:00:02]} 66... Bxf8 {[%clk 0:00:24]} 0-1